[Event "Titled Tuesday Blitz October 31 Late 2023"]
[White "Mahdavi, Reza"]
[Black "Krzyzanowski, Marcin"]
[WhiteFideId "12595926"]
[BlackFideId "1132199"]
[WhiteElo "2935"]
[BlackElo "2765"]
[Result "0-1"]
[Round "5"]
[TimeControl "180+1"]
[Date "2023.10.31"]
[WhiteClock "0:00:04"]
[BlackClock "0:00:05"]
[Board "9"]

1. c4 {[%clk 0:03:00]}  e5 {[%clk 0:02:59]} 2. Nc3 {[%clk 0:02:58]}  Bb4 {[%clk 0:02:58]} 3. Nd5 {[%clk 0:02:56]}  a5 {[%clk 0:02:58]} 4. a3 {[%clk 0:02:55]}  Bc5 {[%clk 0:02:57]} 5. e3 {[%clk 0:02:56]}  d6 {[%clk 0:02:55]} 6. Ne2 {[%clk 0:02:31]}  c6 {[%clk 0:02:54]} 7. Ndc3 {[%clk 0:02:31]}  Ba7 {[%clk 0:02:46]} 8. d4 {[%clk 0:02:32]}  Nd7 {[%clk 0:02:46]} 9. Ng3 {[%clk 0:02:30]}  Ngf6 {[%clk 0:02:39]} 10. Be2 {[%clk 0:02:18]}  O-O {[%clk 0:02:38]} 11. O-O {[%clk 0:02:18]}  Re8 {[%clk 0:02:35]} 12. b4 {[%clk 0:02:14]}  Nf8 {[%clk 0:02:27]} 13. Bb2 {[%clk 0:02:03]}  Ng6 {[%clk 0:02:16]} 14. dxe5 {[%clk 0:01:57]}  Nxe5 {[%clk 0:02:09]} 15. Nce4 {[%clk 0:01:53]}  Nxe4 {[%clk 0:01:51]} 16. Nxe4 {[%clk 0:01:54]}  Bb8 {[%clk 0:01:48]} 17. Ng3 {[%clk 0:01:46]}  Qh4 {[%clk 0:01:43]} 18. Qd4 {[%clk 0:01:43]}  Qxd4 {[%clk 0:01:21]} 19. exd4 {[%clk 0:01:44]}  Ng6 {[%clk 0:01:19]} 20. d5 {[%clk 0:01:44]}  Nf4 {[%clk 0:01:14]} 21. Bf3 {[%clk 0:01:43]}  cxd5 {[%clk 0:01:14]} 22. cxd5 {[%clk 0:01:44]}  Bd7 {[%clk 0:01:12]} 23. Bc1 {[%clk 0:01:34]}  Nd3 {[%clk 0:01:10]} 24. Bd2 {[%clk 0:01:33]}  axb4 {[%clk 0:01:07]} 25. axb4 {[%clk 0:01:34]}  Ba7 {[%clk 0:01:07]} 26. Ne4 {[%clk 0:01:25]}  Bd4 {[%clk 0:00:48]} 27. Rxa8 {[%clk 0:01:22]}  Rxa8 {[%clk 0:00:49]} 28. Nxd6 {[%clk 0:01:22]}  Nxf2 {[%clk 0:00:50]} 29. Bc3 {[%clk 0:00:58]}  Bxc3 {[%clk 0:00:43]} 30. Kxf2 {[%clk 0:00:58]}  Bd4+ {[%clk 0:00:43]} 31. Ke2 {[%clk 0:00:38]}  Be5 {[%clk 0:00:41]} 32. Nc4 {[%clk 0:00:37]}  Bb5 {[%clk 0:00:38]} 33. Rc1 {[%clk 0:00:37]}  Ra2+ {[%clk 0:00:26]} 34. Kd3 {[%clk 0:00:37]}  f5 {[%clk 0:00:20]} 35. Ke3 {[%clk 0:00:36]}  Bxh2 {[%clk 0:00:10]} 36. Na5 {[%clk 0:00:17]}  g5 {[%clk 0:00:10]} 37. Rc8+ {[%clk 0:00:17]}  Kg7 {[%clk 0:00:10]} 38. Kd4 {[%clk 0:00:16]}  Bd7 {[%clk 0:00:07]} 39. Rd8 {[%clk 0:00:15]}  Bg1+ {[%clk 0:00:06]} 40. Kc3 {[%clk 0:00:13]}  Bb5 {[%clk 0:00:06]} 41. Rc8 {[%clk 0:00:11]}  g4 {[%clk 0:00:06]} 42. Rc7+ {[%clk 0:00:11]}  Kg6 {[%clk 0:00:06]} 43. Bd1 {[%clk 0:00:12]}  Rxg2 {[%clk 0:00:06]} 44. Rxb7 {[%clk 0:00:11]}  Bf1 {[%clk 0:00:06]} 45. d6 {[%clk 0:00:10]}  Bh2 {[%clk 0:00:06]} 46. d7 {[%clk 0:00:10]}  Be5+ {[%clk 0:00:07]} 47. Kb3 {[%clk 0:00:09]}  Rd2 {[%clk 0:00:07]} 48. Bc2 {[%clk 0:00:09]}  g3 {[%clk 0:00:06]} 49. Nc6 {[%clk 0:00:10]}  Bf6 {[%clk 0:00:06]} 50. Rb6 {[%clk 0:00:06]}  Kg5 {[%clk 0:00:06]} 51. Rb5 {[%clk 0:00:04]}  Bxb5 {[%clk 0:00:05]} 0-1


[Site "https://www.chess.com"]

[Event "Titled Tuesday Blitz October 31 Late 2023"]
[White "Szpar, Milosz"]
[Black "Bauman_Guy"]
[WhiteFideId "1184989"]
[WhiteElo "2762"]
[BlackElo "2920"]
[Result "1-0"]
[Round "5"]
[TimeControl "180+1"]
[Date "2023.10.31"]
[WhiteClock "0:00:05"]
[BlackClock "0:00:00"]
[Board "10"]

1. Nf3 {[%clk 0:03:00]}  d5 {[%clk 0:02:59]} 2. e3 {[%clk 0:03:00]}  c6 {[%clk 0:03:00]} 3. c4 {[%clk 0:03:00]}  Nf6 {[%clk 0:03:00]} 4. Nc3 {[%clk 0:02:59]}  g6 {[%clk 0:02:59]} 5. d4 {[%clk 0:02:55]}  Bg7 {[%clk 0:02:59]} 6. Be2 {[%clk 0:02:55]}  O-O {[%clk 0:03:00]} 7. O-O {[%clk 0:02:55]}  a6 {[%clk 0:03:00]} 8. a4 {[%clk 0:02:43]}  dxc4 {[%clk 0:02:43]} 9. a5 {[%clk 0:02:37]}  Bg4 {[%clk 0:02:39]} 10. Ne5 {[%clk 0:02:30]}  Bxe2 {[%clk 0:02:38]} 11. Qxe2 {[%clk 0:02:31]}  Nbd7 {[%clk 0:02:39]} 12. Nxc4 {[%clk 0:02:30]}  Nd5 {[%clk 0:02:37]} 13. e4 {[%clk 0:02:20]}  Nc7 {[%clk 0:02:29]} 14. Rd1 {[%clk 0:02:16]}  Nb5 {[%clk 0:02:27]} 15. Be3 {[%clk 0:02:11]}  Qc7 {[%clk 0:02:27]} 16. Rac1 {[%clk 0:02:08]}  Rfd8 {[%clk 0:02:26]} 17. Na4 {[%clk 0:02:06]}  Nf6 {[%clk 0:02:06]} 18. Qf3 {[%clk 0:02:03]}  Nd7 {[%clk 0:01:35]} 19. Nab6 {[%clk 0:01:35]}  Nxb6 {[%clk 0:01:31]} 20. Nxb6 {[%clk 0:01:35]}  Rab8 {[%clk 0:01:29]} 21. Bf4 {[%clk 0:01:27]}  e5 {[%clk 0:01:18]} 22. dxe5 {[%clk 0:01:24]}  Bxe5 {[%clk 0:01:13]} 23. Bxe5 {[%clk 0:01:20]}  Qxe5 {[%clk 0:01:09]} 24. Nd7 {[%clk 0:01:20]}  Qxb2 {[%clk 0:01:07]} 25. Nxb8 {[%clk 0:01:18]}  Rxb8 {[%clk 0:01:07]} 26. Qf4 {[%clk 0:00:55]}  Rf8 {[%clk 0:00:58]} 27. Qd2 {[%clk 0:00:41]}  Qa3 {[%clk 0:00:52]} 28. h4 {[%clk 0:00:37]}  h5 {[%clk 0:00:51]} 29. Re1 {[%clk 0:00:24]}  Re8 {[%clk 0:00:49]} 30. Re3 {[%clk 0:00:19]}  Qe7 {[%clk 0:00:46]} 31. g3 {[%clk 0:00:19]}  Qf6 {[%clk 0:00:40]} 32. Rd1 {[%clk 0:00:18]}  c5 {[%clk 0:00:40]} 33. Qd7 {[%clk 0:00:17]}  Re7 {[%clk 0:00:39]} 34. Qc8+ {[%clk 0:00:14]}  Kh7 {[%clk 0:00:32]} 35. Qxc5 {[%clk 0:00:12]}  Re5 {[%clk 0:00:32]} 36. Qf8 {[%clk 0:00:10]}  Nc7 {[%clk 0:00:20]} 37. Rd8 {[%clk 0:00:10]}  Ne6 {[%clk 0:00:19]} 38. Qg8+ {[%clk 0:00:09]}  Kh6 {[%clk 0:00:19]} 39. Rd7 {[%clk 0:00:04]}  Qg7 {[%clk 0:00:07]} 40. Qxf7 {[%clk 0:00:04]}  Qxf7 {[%clk 0:00:07]} 41. Rxf7 {[%clk 0:00:05]}  Rb5 {[%clk 0:00:07]} 42. Re7 {[%clk 0:00:04]}  Nd4 {[%clk 0:00:06]} 43. Rd3 {[%clk 0:00:03]}  Nc6 {[%clk 0:00:04]} 44. Re8 {[%clk 0:00:04]}  Nxa5 {[%clk 0:00:03]} 45. Kg2 {[%clk 0:00:04]}  Kg7 {[%clk 0:00:03]} 46. Rd7+ {[%clk 0:00:04]}  Kf6 {[%clk 0:00:04]} 47. Rd6+ {[%clk 0:00:04]}  Kf7 {[%clk 0:00:04]} 48. Rh8 {[%clk 0:00:04]}  Nc4 {[%clk 0:00:04]} 49. Rh7+ {[%clk 0:00:04]}  Kg8 {[%clk 0:00:03]} 50. Rdd7 {[%clk 0:00:05]}  Ne5 {[%clk 0:00:02]} 51. Rdg7+ {[%clk 0:00:05]}  Kf8 {[%clk 0:00:02]} 52. Rxb7 {[%clk 0:00:05]}  Rc5 {[%clk 0:00:00]} 53. Rb8+ {[%clk 0:00:05]} 1-0


[Site "https://www.chess.com"]

[Event "Titled Tuesday Blitz October 31 Late 2023"]
[White "Eljanov, Pavel"]
[Black "Rastbod, Ali"]
[WhiteFideId "14102951"]
[BlackFideId "12567477"]
[WhiteElo "2822"]
[BlackElo "2759"]
[Result "1-0"]
[Round "5"]
[TimeControl "180+1"]
[Date "2023.10.31"]
[WhiteClock "0:00:06"]
[BlackClock "0:00:00"]
[Board "11"]

1. e4 {[%clk 0:03:00]}  e6 {[%clk 0:02:58]} 2. d4 {[%clk 0:03:00]}  d5 {[%clk 0:02:59]} 3. e5 {[%clk 0:03:00]}  c5 {[%clk 0:02:57]} 4. c3 {[%clk 0:03:00]}  Nc6 {[%clk 0:02:53]} 5. Nf3 {[%clk 0:03:00]}  Qb6 {[%clk 0:02:53]} 6. a3 {[%clk 0:03:00]}  c4 {[%clk 0:02:53]} 7. Nbd2 {[%clk 0:02:58]}  Na5 {[%clk 0:02:50]} 8. Be2 {[%clk 0:02:54]}  f6 {[%clk 0:02:49]} 9. O-O {[%clk 0:02:52]}  Bd7 {[%clk 0:02:49]} 10. Qc2 {[%clk 0:02:40]}  O-O-O {[%clk 0:02:44]} 11. a4 {[%clk 0:02:17]}  Be8 {[%clk 0:02:39]} 12. Rb1 {[%clk 0:02:14]}  Bg6 {[%clk 0:02:37]} 13. Qd1 {[%clk 0:02:14]}  Bxb1 {[%clk 0:02:33]} 14. Nxb1 {[%clk 0:02:14]}  Qb3 {[%clk 0:02:31]} 15. Qe1 {[%clk 0:02:08]}  Qxa4 {[%clk 0:02:22]} 16. Nbd2 {[%clk 0:02:08]}  Qc6 {[%clk 0:02:17]} 17. Bd1 {[%clk 0:02:01]}  Kb8 {[%clk 0:02:06]} 18. b4 {[%clk 0:01:57]}  cxb3 {[%clk 0:01:56]} 19. Nxb3 {[%clk 0:01:57]}  Nc4 {[%clk 0:01:57]} 20. Nfd2 {[%clk 0:01:47]}  fxe5 {[%clk 0:01:28]} 21. dxe5 {[%clk 0:01:46]}  Nxd2 {[%clk 0:01:18]} 22. Bxd2 {[%clk 0:01:46]}  Qc7 {[%clk 0:01:12]} 23. Nd4 {[%clk 0:01:43]}  Bc5 {[%clk 0:01:05]} 24. Nxe6 {[%clk 0:01:41]}  Qc8 {[%clk 0:00:58]} 25. Nxd8 {[%clk 0:01:41]}  Qxd8 {[%clk 0:00:59]} 26. Bf3 {[%clk 0:01:34]}  Ne7 {[%clk 0:00:57]} 27. Bg5 {[%clk 0:01:35]}  Qc7 {[%clk 0:00:44]} 28. Qe2 {[%clk 0:01:14]}  Rd8 {[%clk 0:00:24]} 29. Rb1 {[%clk 0:01:04]}  h6 {[%clk 0:00:19]} 30. Bxe7 {[%clk 0:01:03]}  Qxe7 {[%clk 0:00:18]} 31. g3 {[%clk 0:00:41]}  Bb6 {[%clk 0:00:14]} 32. Rd1 {[%clk 0:00:33]}  Qc5 {[%clk 0:00:14]} 33. Rd3 {[%clk 0:00:29]}  a5 {[%clk 0:00:09]} 34. e6 {[%clk 0:00:29]}  a4 {[%clk 0:00:09]} 35. Rxd5 {[%clk 0:00:22]}  Rxd5 {[%clk 0:00:05]} 36. Bxd5 {[%clk 0:00:22]}  Bd8 {[%clk 0:00:03]} 37. Qe5+ {[%clk 0:00:13]}  Ka7 {[%clk 0:00:03]} 38. Qd4 {[%clk 0:00:10]}  Kb6 {[%clk 0:00:02]} 39. Ba2 {[%clk 0:00:05]}  Qxd4 {[%clk 0:00:00]} 40. cxd4 {[%clk 0:00:06]} 1-0


[Site "https://www.chess.com"]

[Event "Titled Tuesday Blitz October 31 Late 2023"]
[White "Sokolovsky, Yahli"]
[Black "Manukyan, Sargis A."]
[WhiteFideId "2820242"]
[BlackFideId "13303970"]
[WhiteElo "2795"]
[BlackElo "2638"]
[Result "1-0"]
[Round "5"]
[TimeControl "180+1"]
[Date "2023.10.31"]
[WhiteClock "0:00:24"]
[BlackClock "0:00:00"]
[Board "12"]

1. b3 {[%clk 0:03:00]}  d5 {[%clk 0:02:59]} 2. Bb2 {[%clk 0:03:01]}  e6 {[%clk 0:02:59]} 3. e3 {[%clk 0:03:02]}  Nf6 {[%clk 0:02:59]} 4. Nf3 {[%clk 0:03:02]}  c5 {[%clk 0:03:00]} 5. d4 {[%clk 0:03:03]}  Nc6 {[%clk 0:03:00]} 6. Nbd2 {[%clk 0:03:00]}  Be7 {[%clk 0:02:59]} 7. Bd3 {[%clk 0:03:01]}  b6 {[%clk 0:02:56]} 8. Ne5 {[%clk 0:02:59]}  Bb7 {[%clk 0:02:54]} 9. O-O {[%clk 0:03:00]}  O-O {[%clk 0:02:54]} 10. f4 {[%clk 0:02:59]}  Nb4 {[%clk 0:02:47]} 11. Be2 {[%clk 0:02:59]}  Ne4 {[%clk 0:02:40]} 12. c3 {[%clk 0:02:58]}  Nc6 {[%clk 0:02:36]} 13. Nxe4 {[%clk 0:02:47]}  dxe4 {[%clk 0:02:36]} 14. Qc2 {[%clk 0:02:27]}  f5 {[%clk 0:02:20]} 15. Bc4 {[%clk 0:02:18]}  Nxe5 {[%clk 0:02:19]} 16. dxe5 {[%clk 0:02:10]}  Qc8 {[%clk 0:02:09]} 17. Rfd1 {[%clk 0:01:55]}  Bc6 {[%clk 0:01:41]} 18. a4 {[%clk 0:01:51]}  a6 {[%clk 0:01:41]} 19. Qe2 {[%clk 0:01:49]}  g6 {[%clk 0:01:40]} 20. g4 {[%clk 0:01:40]}  fxg4 {[%clk 0:01:22]} 21. Qxg4 {[%clk 0:01:39]}  Rf5 {[%clk 0:01:22]} 22. Kh1 {[%clk 0:01:32]}  b5 {[%clk 0:01:21]} 23. axb5 {[%clk 0:01:32]}  Bxb5 {[%clk 0:01:14]} 24. Qe2 {[%clk 0:01:27]}  Bxc4 {[%clk 0:01:08]} 25. Qxc4 {[%clk 0:01:28]}  Kf7 {[%clk 0:01:07]} 26. Qxe4 {[%clk 0:01:21]}  Rb8 {[%clk 0:01:08]} 27. Ra3 {[%clk 0:01:05]}  a5 {[%clk 0:01:00]} 28. Rd2 {[%clk 0:00:53]}  c4 {[%clk 0:00:57]} 29. Rxa5 {[%clk 0:00:52]}  Rxb3 {[%clk 0:00:47]} 30. Ra7 {[%clk 0:00:41]}  Qb8 {[%clk 0:00:41]} 31. Rdd7 {[%clk 0:00:39]}  Rxb2 {[%clk 0:00:22]} 32. Rxe7+ {[%clk 0:00:39]}  Kf8 {[%clk 0:00:22]} 33. Rxh7 {[%clk 0:00:26]}  Rb1+ {[%clk 0:00:20]} 34. Kg2 {[%clk 0:00:26]}  Rb2+ {[%clk 0:00:05]} 35. Kh3 {[%clk 0:00:26]}  Rxh2+ {[%clk 0:00:04]} 36. Kxh2 {[%clk 0:00:25]}  Qb2+ {[%clk 0:00:03]} 37. Kg3 {[%clk 0:00:25]}  Rg5+ {[%clk 0:00:03]} 38. fxg5 {[%clk 0:00:24]}  Qg2+ {[%clk 0:00:00]} 39. Qxg2 {[%clk 0:00:24]} 1-0


[Site "https://www.chess.com"]

[Event "Titled Tuesday Blitz October 31 Late 2023"]
[White "Le, Quang Liem"]
[Black "Djokic, Mihailo"]
[WhiteFideId "12401137"]
[BlackFideId "976440"]
[WhiteElo "3042"]
[BlackElo "2734"]
[Result "1-0"]
[Round "5"]
[TimeControl "180+1"]
[Date "2023.10.31"]
[WhiteClock "0:00:26"]
[BlackClock "0:00:09"]
[Board "14"]

1. Nf3 {[%clk 0:03:00]}  Nf6 {[%clk 0:02:56]} 2. c4 {[%clk 0:03:00]}  g6 {[%clk 0:02:54]} 3. Nc3 {[%clk 0:03:01]}  Bg7 {[%clk 0:02:54]} 4. e4 {[%clk 0:03:01]}  d6 {[%clk 0:02:51]} 5. d4 {[%clk 0:03:01]}  O-O {[%clk 0:02:50]} 6. Be2 {[%clk 0:03:01]}  e5 {[%clk 0:02:50]} 7. O-O {[%clk 0:03:02]}  Nc6 {[%clk 0:02:50]} 8. Be3 {[%clk 0:02:59]}  Ng4 {[%clk 0:02:48]} 9. Bg5 {[%clk 0:02:59]}  f6 {[%clk 0:02:39]} 10. Bc1 {[%clk 0:02:59]}  Nh6 {[%clk 0:02:33]} 11. c5 {[%clk 0:02:44]}  dxc5 {[%clk 0:02:27]} 12. dxe5 {[%clk 0:02:39]}  fxe5 {[%clk 0:02:16]} 13. Qd5+ {[%clk 0:02:10]}  Nf7 {[%clk 0:01:55]} 14. Qxc5 {[%clk 0:02:08]}  Nd4 {[%clk 0:01:51]} 15. Be3 {[%clk 0:01:47]}  b6 {[%clk 0:01:48]} 16. Qc4 {[%clk 0:01:31]}  Be6 {[%clk 0:01:47]} 17. Qa6 {[%clk 0:01:31]}  c5 {[%clk 0:01:41]} 18. Rad1 {[%clk 0:01:26]}  Nd6 {[%clk 0:01:38]} 19. Ng5 {[%clk 0:01:23]}  Bc8 {[%clk 0:01:38]} 20. Qa3 {[%clk 0:01:09]}  h6 {[%clk 0:01:37]} 21. Nf3 {[%clk 0:01:09]}  Kh7 {[%clk 0:01:33]} 22. b4 {[%clk 0:01:02]}  Bb7 {[%clk 0:01:23]} 23. bxc5 {[%clk 0:00:59]}  bxc5 {[%clk 0:01:23]} 24. Nd2 {[%clk 0:00:56]}  Qc7 {[%clk 0:01:07]} 25. Rb1 {[%clk 0:00:51]}  Rf7 {[%clk 0:00:52]} 26. Bc4 {[%clk 0:00:46]}  Rd7 {[%clk 0:00:44]} 27. Bd5 {[%clk 0:00:44]}  a6 {[%clk 0:00:25]} 28. Kh1 {[%clk 0:00:40]}  Rf8 {[%clk 0:00:21]} 29. Rfc1 {[%clk 0:00:38]}  N6b5 {[%clk 0:00:19]} 30. Nxb5 {[%clk 0:00:37]}  Nxb5 {[%clk 0:00:19]} 31. Qxc5 {[%clk 0:00:37]}  Bxd5 {[%clk 0:00:18]} 32. exd5 {[%clk 0:00:34]}  Qxc5 {[%clk 0:00:18]} 33. Bxc5 {[%clk 0:00:32]}  Rfd8 {[%clk 0:00:12]} 34. a4 {[%clk 0:00:32]}  Rxd5 {[%clk 0:00:12]} 35. axb5 {[%clk 0:00:32]}  Rxd2 {[%clk 0:00:11]} 36. bxa6 {[%clk 0:00:30]}  Ra2 {[%clk 0:00:11]} 37. a7 {[%clk 0:00:30]}  e4 {[%clk 0:00:12]} 38. Rb7 {[%clk 0:00:28]}  Kg8 {[%clk 0:00:09]} 39. Rb8 {[%clk 0:00:26]} 1-0


[Site "https://www.chess.com"]

[Event "Titled Tuesday Blitz October 31 Late 2023"]
[White "Maximov, Dmitry"]
[Black "Paravyan, David"]
[WhiteFideId "14105659"]
[BlackFideId "4194985"]
[WhiteElo "2731"]
[BlackElo "3041"]
[Result "0-1"]
[Round "5"]
[TimeControl "180+1"]
[Date "2023.10.31"]
[WhiteClock "0:00:13"]
[BlackClock "0:01:56"]
[Board "15"]

1. e4 {[%clk 0:03:00]}  e5 {[%clk 0:02:58]} 2. Nf3 {[%clk 0:03:01]}  Nf6 {[%clk 0:02:58]} 3. Nxe5 {[%clk 0:03:00]}  d6 {[%clk 0:02:59]} 4. Nd3 {[%clk 0:03:00]}  Nxe4 {[%clk 0:02:59]} 5. Nf4 {[%clk 0:03:01]}  d5 {[%clk 0:02:59]} 6. d4 {[%clk 0:03:00]}  Nc6 {[%clk 0:02:59]} 7. c3 {[%clk 0:03:00]}  Bf5 {[%clk 0:02:52]} 8. Qb3 {[%clk 0:02:55]}  Bd6 {[%clk 0:02:44]} 9. Qxd5 {[%clk 0:02:35]}  Ne7 {[%clk 0:02:44]} 10. Qxb7 {[%clk 0:02:30]}  O-O {[%clk 0:02:44]} 11. Be2 {[%clk 0:02:24]}  Ng6 {[%clk 0:02:42]} 12. Nxg6 {[%clk 0:02:19]}  fxg6 {[%clk 0:02:42]} 13. Be3 {[%clk 0:02:16]}  Rb8 {[%clk 0:02:27]} 14. Qd5+ {[%clk 0:01:52]}  Kh8 {[%clk 0:02:27]} 15. b3 {[%clk 0:01:38]}  Qh4 {[%clk 0:02:18]} 16. g3 {[%clk 0:01:23]}  Qe7 {[%clk 0:02:17]} 17. Qc4 {[%clk 0:01:20]}  Rbe8 {[%clk 0:02:15]} 18. Nd2 {[%clk 0:01:13]}  Nxf2 {[%clk 0:02:05]} 19. Bxf2 {[%clk 0:01:12]}  Bg4 {[%clk 0:02:05]} 20. O-O {[%clk 0:00:59]}  Bxe2 {[%clk 0:02:04]} 21. Qc6 {[%clk 0:00:59]}  Bxf1 {[%clk 0:02:04]} 22. Rxf1 {[%clk 0:00:59]}  Qe2 {[%clk 0:02:04]} 23. Nc4 {[%clk 0:00:55]}  h5 {[%clk 0:01:57]} 24. Nxd6 {[%clk 0:00:52]}  cxd6 {[%clk 0:01:58]} 25. Qxd6 {[%clk 0:00:53]}  Rf6 {[%clk 0:01:57]} 26. Qd7 {[%clk 0:00:13]}  Ref8 {[%clk 0:01:56]} 0-1


[Site "https://www.chess.com"]

[Event "Titled Tuesday Blitz October 31 Late 2023"]
[White "Erenberg, Ariel"]
[Black "Terry, Renato"]
[WhiteFideId "2811634"]
[BlackFideId "3803457"]
[WhiteElo "2718"]
[BlackElo "3012"]
[Result "0-1"]
[Round "5"]
[TimeControl "180+1"]
[Date "2023.10.31"]
[WhiteClock "0:00:00"]
[BlackClock "0:00:35"]
[Board "16"]

1. c4 {[%clk 0:02:57]}  e5 {[%clk 0:02:59]} 2. g3 {[%clk 0:02:56]}  Nf6 {[%clk 0:02:58]} 3. Bg2 {[%clk 0:02:56]}  c6 {[%clk 0:02:59]} 4. Nf3 {[%clk 0:02:55]}  e4 {[%clk 0:02:59]} 5. Nd4 {[%clk 0:02:55]}  d5 {[%clk 0:03:00]} 6. cxd5 {[%clk 0:02:55]}  Qxd5 {[%clk 0:03:00]} 7. Nc2 {[%clk 0:02:55]}  Qh5 {[%clk 0:03:01]} 8. h3 {[%clk 0:02:55]}  Bc5 {[%clk 0:02:50]} 9. Nc3 {[%clk 0:02:53]}  O-O {[%clk 0:02:35]} 10. Nxe4 {[%clk 0:02:47]}  Nxe4 {[%clk 0:02:35]} 11. Bxe4 {[%clk 0:02:48]}  Re8 {[%clk 0:02:35]} 12. Bg2 {[%clk 0:02:45]}  Bf5 {[%clk 0:02:17]} 13. Ne3 {[%clk 0:02:31]}  Be4 {[%clk 0:02:12]} 14. f3 {[%clk 0:02:14]}  Bg6 {[%clk 0:02:04]} 15. O-O {[%clk 0:02:08]}  Na6 {[%clk 0:02:02]} 16. g4 {[%clk 0:02:03]}  Qh4 {[%clk 0:01:55]} 17. a3 {[%clk 0:01:29]}  Rad8 {[%clk 0:01:41]} 18. Qa4 {[%clk 0:01:28]}  Qg3 {[%clk 0:01:33]} 19. b4 {[%clk 0:01:09]}  Bd6 {[%clk 0:01:13]} 20. Rd1 {[%clk 0:01:00]}  Qh2+ {[%clk 0:01:03]} 21. Kf1 {[%clk 0:01:00]}  Bf4 {[%clk 0:01:01]} 22. Bb2 {[%clk 0:00:56]}  Rxd2 {[%clk 0:00:57]} 23. Qb3 {[%clk 0:00:27]}  Rxe2 {[%clk 0:00:56]} 24. Qc3 {[%clk 0:00:21]}  Rxb2 {[%clk 0:00:35]} 25. Qxb2 {[%clk 0:00:19]}  Bxe3 {[%clk 0:00:35]} 26. Ra2 {[%clk 0:00:12]}  Qg1+ {[%clk 0:00:34]} 27. Ke2 {[%clk 0:00:00]}  Qxg2+ {[%clk 0:00:35]} 0-1


[Site "https://www.chess.com"]

[Event "Titled Tuesday Blitz October 31 Late 2023"]
[White "Yoo, Christopher Woojin"]
[Black "Rohan, Ahuja"]
[WhiteFideId "30909694"]
[BlackFideId "5090598"]
[WhiteElo "3001"]
[BlackElo "2717"]
[Result "1-0"]
[Round "5"]
[TimeControl "180+1"]
[Date "2023.10.31"]
[WhiteClock "0:00:08"]
[BlackClock "0:00:01"]
[Board "17"]

1. Nf3 {[%clk 0:03:00]}  Nf6 {[%clk 0:03:00]} 2. g3 {[%clk 0:02:56]}  g6 {[%clk 0:03:00]} 3. Bg2 {[%clk 0:02:56]}  Bg7 {[%clk 0:03:01]} 4. O-O {[%clk 0:02:57]}  d5 {[%clk 0:03:01]} 5. d3 {[%clk 0:02:57]}  O-O {[%clk 0:02:59]} 6. Nbd2 {[%clk 0:02:57]}  d4 {[%clk 0:03:00]} 7. c3 {[%clk 0:02:53]}  dxc3 {[%clk 0:02:55]} 8. bxc3 {[%clk 0:02:54]}  Nd5 {[%clk 0:02:55]} 9. Ne4 {[%clk 0:02:39]}  Nxc3 {[%clk 0:02:42]} 10. Nxc3 {[%clk 0:02:38]}  Bxc3 {[%clk 0:02:42]} 11. Bh6 {[%clk 0:02:38]}  Bxa1 {[%clk 0:02:38]} 12. Qxa1 {[%clk 0:02:39]}  f6 {[%clk 0:02:38]} 13. Bxf8 {[%clk 0:02:39]}  Kxf8 {[%clk 0:02:39]} 14. Rc1 {[%clk 0:02:38]}  c6 {[%clk 0:02:28]} 15. Qb2 {[%clk 0:02:38]}  Qd6 {[%clk 0:01:33]} 16. Nd2 {[%clk 0:02:31]}  Nd7 {[%clk 0:01:19]} 17. Nc4 {[%clk 0:02:28]}  Qe6 {[%clk 0:01:19]} 18. a4 {[%clk 0:02:23]}  Nb6 {[%clk 0:01:02]} 19. Na5 {[%clk 0:01:55]}  Qe5 {[%clk 0:00:49]} 20. Qb4 {[%clk 0:01:51]}  Qd6 {[%clk 0:00:44]} 21. Qh4 {[%clk 0:01:46]}  Kg7 {[%clk 0:00:42]} 22. Nb3 {[%clk 0:01:30]}  Be6 {[%clk 0:00:27]} 23. Nc5 {[%clk 0:01:28]}  Rb8 {[%clk 0:00:28]} 24. a5 {[%clk 0:00:37]}  Nd7 {[%clk 0:00:20]} 25. Nxe6+ {[%clk 0:00:29]}  Qxe6 {[%clk 0:00:21]} 26. a6 {[%clk 0:00:24]}  bxa6 {[%clk 0:00:22]} 27. Qd4 {[%clk 0:00:24]}  Rb6 {[%clk 0:00:21]} 28. h3 {[%clk 0:00:16]}  Qd6 {[%clk 0:00:21]} 29. Qa4 {[%clk 0:00:14]}  c5 {[%clk 0:00:18]} 30. Ra1 {[%clk 0:00:11]}  Nb8 {[%clk 0:00:15]} 31. Qc4 {[%clk 0:00:11]}  Rb4 {[%clk 0:00:10]} 32. Qa2 {[%clk 0:00:11]}  Rb6 {[%clk 0:00:10]} 33. Rc1 {[%clk 0:00:11]}  Nd7 {[%clk 0:00:11]} 34. Qa5 {[%clk 0:00:09]}  e6 {[%clk 0:00:11]} 35. Bf3 {[%clk 0:00:08]}  h5 {[%clk 0:00:11]} 36. h4 {[%clk 0:00:08]}  Ne5 {[%clk 0:00:10]} 37. Be4 {[%clk 0:00:08]}  Nd7 {[%clk 0:00:10]} 38. Ra1 {[%clk 0:00:08]}  Rb5 {[%clk 0:00:09]} 39. Qxa6 {[%clk 0:00:06]}  Qxa6 {[%clk 0:00:10]} 40. Rxa6 {[%clk 0:00:06]}  f5 {[%clk 0:00:07]} 41. Rxa7 {[%clk 0:00:05]}  fxe4 {[%clk 0:00:07]} 42. Rxd7+ {[%clk 0:00:05]}  Kf6 {[%clk 0:00:08]} 43. dxe4 {[%clk 0:00:06]}  Rb1+ {[%clk 0:00:07]} 44. Kg2 {[%clk 0:00:05]}  Rb2 {[%clk 0:00:08]} 45. Kf3 {[%clk 0:00:05]}  Rb3+ {[%clk 0:00:08]} 46. e3 {[%clk 0:00:04]}  Rb2 {[%clk 0:00:09]} 47. Rc7 {[%clk 0:00:04]}  Rc2 {[%clk 0:00:10]} 48. Kg2 {[%clk 0:00:01]}  Ke5 {[%clk 0:00:09]} 49. Kf3 {[%clk 0:00:02]}  Kf6 {[%clk 0:00:10]} 50. Rc6 {[%clk 0:00:02]}  Ke5 {[%clk 0:00:09]} 51. Kg2 {[%clk 0:00:03]}  Kf6 {[%clk 0:00:10]} 52. Kg1 {[%clk 0:00:02]}  Ke5 {[%clk 0:00:10]} 53. f3 {[%clk 0:00:02]}  c4 {[%clk 0:00:08]} 54. Kf1 {[%clk 0:00:03]}  c3 {[%clk 0:00:07]} 55. Ke1 {[%clk 0:00:04]}  Rg2 {[%clk 0:00:04]} 56. Rxc3 {[%clk 0:00:03]}  Rxg3 {[%clk 0:00:04]} 57. Kf2 {[%clk 0:00:04]}  Rh3 {[%clk 0:00:04]} 58. Kg2 {[%clk 0:00:05]}  Rxh4 {[%clk 0:00:04]} 59. Rc1 {[%clk 0:00:05]}  g5 {[%clk 0:00:04]} 60. Kg3 {[%clk 0:00:06]}  Kf6 {[%clk 0:00:04]} 61. f4 {[%clk 0:00:05]}  Rg4+ {[%clk 0:00:04]} 62. Kf3 {[%clk 0:00:06]}  gxf4 {[%clk 0:00:05]} 63. exf4 {[%clk 0:00:06]}  Rh4 {[%clk 0:00:05]} 64. Kg3 {[%clk 0:00:04]}  Rg4+ {[%clk 0:00:06]} 65. Kf3 {[%clk 0:00:05]}  Rh4 {[%clk 0:00:06]} 66. Rc6 {[%clk 0:00:05]}  Kf7 {[%clk 0:00:06]} 67. Rc7+ {[%clk 0:00:04]}  Kf6 {[%clk 0:00:06]} 68. e5+ {[%clk 0:00:05]}  Kf5 {[%clk 0:00:03]} 69. Rf7+ {[%clk 0:00:05]}  Kg6 {[%clk 0:00:03]} 70. Rf6+ {[%clk 0:00:06]}  Kg7 {[%clk 0:00:04]} 71. Rxe6 {[%clk 0:00:06]}  Rh3+ {[%clk 0:00:05]} 72. Ke4 {[%clk 0:00:07]}  Rh1 {[%clk 0:00:06]} 73. Re7+ {[%clk 0:00:07]}  Kf8 {[%clk 0:00:06]} 74. Rh7 {[%clk 0:00:07]}  h4 {[%clk 0:00:06]} 75. Kf5 {[%clk 0:00:07]}  h3 {[%clk 0:00:07]} 76. Kf6 {[%clk 0:00:08]}  Kg8 {[%clk 0:00:06]} 77. Rh4 {[%clk 0:00:08]}  h2 {[%clk 0:00:07]} 78. f5 {[%clk 0:00:08]}  Ra1 {[%clk 0:00:01]} 79. Rxh2 {[%clk 0:00:08]} 1-0


[Site "https://www.chess.com"]